[Event "Late-Titled-Tuesday-Blitz-August-29-2023"]
[Site "Chess.com"]
[Date "2023.08.29"]
[Round "5"]
[White "wild3000"]
[Black "Eloist"]
[Result "0-1"]
[WhiteElo "2314"]
[BlackElo "2459"]
[TimeControl "180+1"]
[EndTime "14:54:30 PDT"]
[Termination "Eloist won on time"]

1. e4 {[%clk 0:02:49]} 1... e6 {[%clk 0:02:59.2]} 2. Nf3 {[%clk 0:02:48.6]} 2...
d5 {[%clk 0:02:59.3]} 3. e5 {[%clk 0:02:49.2]} 3... c5 {[%clk 0:02:59]} 4. b4
{[%clk 0:02:49.4]} 4... cxb4 {[%clk 0:02:59.9]} 5. d4 {[%clk 0:02:49.6]} 5...
Bd7 {[%clk 0:02:56.8]} 6. a3 {[%clk 0:02:49]} 6... Nc6 {[%clk 0:02:55.9]} 7.
axb4 {[%clk 0:02:48.6]} 7... Bxb4+ {[%clk 0:02:55.8]} 8. c3 {[%clk 0:02:48.8]}
8... Ba5 {[%clk 0:02:55.7]} 9. Bd3 {[%clk 0:02:45.3]} 9... Nge7 {[%clk
0:02:55.1]} 10. O-O {[%clk 0:02:44.3]} 10... h6 {[%clk 0:02:52.9]} 11. Na3
{[%clk 0:02:38.2]} 11... a6 {[%clk 0:02:52]} 12. Bb2 {[%clk 0:02:23.3]} 12... b5
{[%clk 0:02:50]} 13. Nd2 {[%clk 0:02:19.2]} 13... b4 {[%clk 0:02:45]} 14. cxb4
{[%clk 0:02:13.9]} 14... Nxb4 {[%clk 0:02:44.9]} 15. Bb1 {[%clk 0:02:13.5]}
15... O-O {[%clk 0:02:39.3]} 16. Qh5 {[%clk 0:02:01.7]} 16... Nf5 {[%clk
0:02:27.7]} 17. Nf3 {[%clk 0:01:56.3]} 17... f6 {[%clk 0:02:22.5]} 18. g4 {[%clk
0:01:42.6]} 18... Be8 {[%clk 0:01:59.9]} 19. Qh3 {[%clk 0:01:40.8]} 19... Ne7
{[%clk 0:01:57.2]} 20. exf6 {[%clk 0:01:38.3]} 20... Rxf6 {[%clk 0:01:55.2]} 21.
g5 {[%clk 0:01:27.3]} 21... hxg5 {[%clk 0:01:45.3]} 22. Qh7+ {[%clk 0:01:23.3]}
22... Kf8 {[%clk 0:01:44.3]} 23. Ne5 {[%clk 0:01:05.1]} 23... Rh6 {[%clk
0:01:24.9]} 24. f4 {[%clk 0:00:51.9]} 24... Rxh7 {[%clk 0:01:21.9]} 25. Bxh7
{[%clk 0:00:49.9]} 25... Nf5 {[%clk 0:01:16.4]} 26. Bc1 {[%clk 0:00:42.4]} 26...
Bb6 {[%clk 0:01:07.7]} 27. Kh1 {[%clk 0:00:21.8]} 27... Bxd4 {[%clk 0:01:07.2]}
28. Rb1 {[%clk 0:00:21.2]} 28... g4 {[%clk 0:00:55.9]} 29. Rxb4 {[%clk
0:00:19.2]} 29... Qh4 {[%clk 0:00:52.1]} 30. Rxd4 {[%clk 0:00:13.6]} 30... Ng3+
{[%clk 0:00:40]} 31. Kg1 {[%clk 0:00:11.5]} 31... Nxf1 {[%clk 0:00:36.2]} 32.
Kxf1 {[%clk 0:00:12.4]} 32... Qxh7 {[%clk 0:00:35.3]} 33. Be3 {[%clk 0:00:10.4]}
33... Qh3+ {[%clk 0:00:34.3]} 34. Ke1 {[%clk 0:00:09.9]} 34... Qxe3+ {[%clk
0:00:33.9]} 35. Kf1 {[%clk 0:00:08.9]} 35... Qxd4 {[%clk 0:00:32.7]} 0-1

[Event "Late-Titled-Tuesday-Blitz-August-29-2023"]
[Site "Chess.com"]
[Date "2023.08.29"]
[Round "5"]
[White "The_Princess_Moon"]
[Black "Road2GM3000"]
[Result "0-1"]
[WhiteElo "2233"]
[BlackElo "2509"]
[TimeControl "180+1"]
[EndTime "14:54:32 PDT"]
[Termination "Road2GM3000 won by checkmate"]

1. e4 {[%clk 0:03:00.9]} 1... c5 {[%clk 0:02:59.8]} 2. Nf3 {[%clk 0:02:59.6]}
2... d6 {[%clk 0:03:00.4]} 3. c3 {[%clk 0:02:58]} 3... Nf6 {[%clk 0:03:00.3]} 4.
h3 {[%clk 0:02:56.9]} 4... g6 {[%clk 0:02:56.5]} 5. Bd3 {[%clk 0:02:57.3]} 5...
Bg7 {[%clk 0:02:57.1]} 6. Bc2 {[%clk 0:02:57.8]} 6... O-O {[%clk 0:02:55.7]} 7.
O-O {[%clk 0:02:58]} 7... e5 {[%clk 0:02:52.2]} 8. Re1 {[%clk 0:02:58]} 8... Nc6
{[%clk 0:02:52.3]} 9. d4 {[%clk 0:02:58.6]} 9... exd4 {[%clk 0:02:52.4]} 10.
cxd4 {[%clk 0:02:58.1]} 10... cxd4 {[%clk 0:02:52.8]} 11. Nxd4 {[%clk
0:02:58.7]} 11... Nxd4 {[%clk 0:02:48.2]} 12. Qxd4 {[%clk 0:02:59.6]} 12... Be6
{[%clk 0:02:46.5]} 13. Nc3 {[%clk 0:02:58.3]} 13... a6 {[%clk 0:02:41.8]} 14.
Bf4 {[%clk 0:02:55]} 14... Ne8 {[%clk 0:02:21.7]} 15. Qd2 {[%clk 0:02:48.2]}
15... Rc8 {[%clk 0:02:19.7]} 16. Rad1 {[%clk 0:02:47]} 16... Qb6 {[%clk
0:02:18]} 17. Bb3 {[%clk 0:02:23.6]} 17... Bxb3 {[%clk 0:02:15.6]} 18. axb3
{[%clk 0:02:24.5]} 18... Qxb3 {[%clk 0:02:12.2]} 19. Bh6 {[%clk 0:02:11.5]}
19... Bxh6 {[%clk 0:01:57.4]} 20. Qxh6 {[%clk 0:02:12.4]} 20... Qxb2 {[%clk
0:01:12.8]} 21. Nd5 {[%clk 0:02:09.8]} 21... Qe5 {[%clk 0:00:49]} 22. f4 {[%clk
0:02:06.3]} 22... Qe6 {[%clk 0:00:49.1]} 23. e5 {[%clk 0:00:47.4]} 23... Rc5
{[%clk 0:00:19.3]} 24. exd6 {[%clk 0:00:44.9]} 24... Rxd5 {[%clk 0:00:19.9]} 25.
Rxe6 {[%clk 0:00:36.6]} 25... Rxd1+ {[%clk 0:00:20]} 26. Kh2 {[%clk 0:00:36.9]}
26... fxe6 {[%clk 0:00:20.4]} 27. f5 {[%clk 0:00:31.1]} 27... exf5 {[%clk
0:00:19.7]} 28. d7 {[%clk 0:00:28.6]} 28... Rxd7 {[%clk 0:00:19.8]} 29. Qe3
{[%clk 0:00:28.8]} 29... Rdf7 {[%clk 0:00:20.1]} 30. Qb3 {[%clk 0:00:28.4]}
30... f4 {[%clk 0:00:20.3]} 31. h4 {[%clk 0:00:28.6]} 31... h5 {[%clk 0:00:20]}
32. Qf3 {[%clk 0:00:26.7]} 32... Kh7 {[%clk 0:00:20.4]} 33. Kh3 {[%clk
0:00:25.8]} 33... Nf6 {[%clk 0:00:20.9]} 34. Qd3 {[%clk 0:00:25.8]} 34... Ng4
{[%clk 0:00:21]} 35. Qf3 {[%clk 0:00:22.7]} 35... Re8 {[%clk 0:00:21.6]} 36. g3
{[%clk 0:00:16.5]} 36... Re3 {[%clk 0:00:19.3]} 37. Qxg4 {[%clk 0:00:09.5]}
37... hxg4+ {[%clk 0:00:18.9]} 38. Kxg4 {[%clk 0:00:10.4]} 38... Rxg3# {[%clk
0:00:19.1]} 0-1

[Event "Late-Titled-Tuesday-Blitz-August-29-2023"]
[Site "Chess.com"]
[Date "2023.08.29"]
[Round "5"]
[White "Quattroporte300"]
[Black "laskakid"]
[Result "1-0"]
[WhiteElo "2394"]
[BlackElo "2177"]
[TimeControl "180+1"]
[EndTime "14:54:33 PDT"]
[Termination "Quattroporte300 won by checkmate"]

1. e4 {[%clk 0:01:41.4]} 1... e5 {[%clk 0:02:59.6]} 2. Nf3 {[%clk 0:01:41]} 2...
Nc6 {[%clk 0:02:59.2]} 3. Bc4 {[%clk 0:01:40.8]} 3... Nf6 {[%clk 0:02:58.5]} 4.
d3 {[%clk 0:01:39.5]} 4... Bc5 {[%clk 0:02:57.7]} 5. O-O {[%clk 0:01:34.1]} 5...
d6 {[%clk 0:02:57]} 6. c3 {[%clk 0:01:33.5]} 6... a5 {[%clk 0:02:56.2]} 7. a4
{[%clk 0:01:32.5]} 7... O-O {[%clk 0:02:50]} 8. Nbd2 {[%clk 0:01:32.6]} 8... Be6
{[%clk 0:02:46.6]} 9. h3 {[%clk 0:01:32.4]} 9... h6 {[%clk 0:02:30.2]} 10. Re1
{[%clk 0:01:32.6]} 10... Ba7 {[%clk 0:02:22.6]} 11. Bb3 {[%clk 0:01:28.4]} 11...
Re8 {[%clk 0:02:19]} 12. Nf1 {[%clk 0:01:28.4]} 12... d5 {[%clk 0:02:06]} 13.
exd5 {[%clk 0:01:16.3]} 13... Nxd5 {[%clk 0:02:05.9]} 14. Ng3 {[%clk 0:01:12.2]}
14... Qf6 {[%clk 0:01:37.6]} 15. Ne4 {[%clk 0:01:08.8]} 15... Qg6 {[%clk
0:01:37.8]} 16. Nh4 {[%clk 0:01:04.3]} 16... Qh7 {[%clk 0:01:33.2]} 17. Qh5
{[%clk 0:00:50.6]} 17... Nf4 {[%clk 0:01:14.8]} 18. Bxf4 {[%clk 0:00:46]} 18...
Bxb3 {[%clk 0:01:03.6]} 19. Be3 {[%clk 0:00:41.5]} 19... Bd5 {[%clk 0:00:45]}
20. Bxa7 {[%clk 0:00:29.5]} 20... Rxa7 {[%clk 0:00:44.7]} 21. Re3 {[%clk
0:00:30]} 21... Bxe4 {[%clk 0:00:35.2]} 22. dxe4 {[%clk 0:00:28]} 22... g6
{[%clk 0:00:32.4]} 23. Rg3 {[%clk 0:00:21.1]} 23... Kh8 {[%clk 0:00:22.4]} 24.
Nxg6+ {[%clk 0:00:19.6]} 24... fxg6 {[%clk 0:00:16.1]} 25. Rxg6 {[%clk
0:00:20.5]} 25... Rg8 {[%clk 0:00:12.7]} 26. Rxh6 {[%clk 0:00:20.4]} 26... Rg7
{[%clk 0:00:10.3]} 27. Rxh7+ {[%clk 0:00:16.5]} 27... Rxh7 {[%clk 0:00:10.5]}
28. Qe8+ {[%clk 0:00:16.6]} 28... Kg7 {[%clk 0:00:10.9]} 29. Rd1 {[%clk
0:00:15.8]} 29... Ra6 {[%clk 0:00:08.2]} 30. Rd7+ {[%clk 0:00:16.1]} 30... Kh6
{[%clk 0:00:07.6]} 31. Qe6+ {[%clk 0:00:15.9]} 31... Kg5 {[%clk 0:00:07.7]} 32.
Rxh7 {[%clk 0:00:15.3]} 32... Nd4 {[%clk 0:00:07.9]} 33. Rg7+ {[%clk 0:00:14.9]}
33... Kf4 {[%clk 0:00:07.6]} 34. Qg4# {[%clk 0:00:13]} 1-0

[Event "Late-Titled-Tuesday-Blitz-August-29-2023"]
[Site "Chess.com"]
[Date "2023.08.29"]
[Round "5"]
[White "VladimirKramnik"]
[Black "Lennis93"]
[Result "1-0"]
[WhiteElo "2949"]
[BlackElo "2693"]
[TimeControl "180+1"]
[EndTime "14:54:36 PDT"]
[Termination "VladimirKramnik won on time"]

1. e4 {[%clk 0:02:50.9]} 1... c5 {[%clk 0:02:59.6]} 2. Nf3 {[%clk 0:02:50.6]}
2... Nc6 {[%clk 0:03:00.3]} 3. d4 {[%clk 0:02:49.8]} 3... cxd4 {[%clk
0:03:01.2]} 4. Nxd4 {[%clk 0:02:50.2]} 4... Qb6 {[%clk 0:03:01.8]} 5. Nb3 {[%clk
0:02:48.6]} 5... Nf6 {[%clk 0:03:01.7]} 6. Nc3 {[%clk 0:02:49.2]} 6... e6 {[%clk
0:03:02.2]} 7. Qe2 {[%clk 0:02:48.6]} 7... Qc7 {[%clk 0:02:40.9]} 8. Bd2 {[%clk
0:02:43]} 8... a6 {[%clk 0:02:39.3]} 9. f4 {[%clk 0:02:41.6]} 9... d6 {[%clk
0:02:39.3]} 10. g4 {[%clk 0:02:40.1]} 10... Be7 {[%clk 0:02:36.5]} 11. g5 {[%clk
0:02:39.3]} 11... Nd7 {[%clk 0:02:36.6]} 12. h4 {[%clk 0:02:36.9]} 12... b5
{[%clk 0:02:36.5]} 13. O-O-O {[%clk 0:02:31.2]} 13... Nb6 {[%clk 0:02:14.7]} 14.
Bg2 {[%clk 0:02:18]} 14... b4 {[%clk 0:02:04.6]} 15. Nd5 {[%clk 0:02:17.6]}
15... exd5 {[%clk 0:02:04]} 16. exd5 {[%clk 0:02:17.7]} 16... Nd8 {[%clk
0:02:01.8]} 17. Bxb4 {[%clk 0:02:05.3]} 17... O-O {[%clk 0:01:52.3]} 18. Nd4
{[%clk 0:01:58.9]} 18... a5 {[%clk 0:01:50.3]} 19. Bc3 {[%clk 0:01:46.1]} 19...
Ba6 {[%clk 0:01:49.9]} 20. Qh5 {[%clk 0:01:23.8]} 20... Na4 {[%clk 0:01:49]} 21.
Rh3 {[%clk 0:01:18.7]} 21... f6 {[%clk 0:01:17.4]} 22. g6 {[%clk 0:01:13.5]}
22... h6 {[%clk 0:01:08]} 23. Nf5 {[%clk 0:01:12.1]} 23... Re8 {[%clk
0:01:00.6]} 24. Re1 {[%clk 0:01:09.4]} 24... Nb7 {[%clk 0:00:56.3]} 25. Rhe3
{[%clk 0:01:07.2]} 25... Nxc3 {[%clk 0:00:50.4]} 26. bxc3 {[%clk 0:01:03.4]}
26... Bb5 {[%clk 0:00:27]} 27. Rxe7 {[%clk 0:00:56.1]} 27... Rxe7 {[%clk
0:00:12.1]} 28. Rxe7 {[%clk 0:00:52.9]} 28... Qxc3 {[%clk 0:00:12.2]} 29. Rxg7+
{[%clk 0:00:51]} 29... Kf8 {[%clk 0:00:12.5]} 30. Rf7+ {[%clk 0:00:46.7]} 30...
Ke8 {[%clk 0:00:12.7]} 31. Re7+ {[%clk 0:00:38.3]} 31... Kd8 {[%clk 0:00:12.9]}
32. g7 {[%clk 0:00:31.2]} 32... Qa3+ {[%clk 0:00:11.7]} 33. Kd1 {[%clk
0:00:30.9]} 33... Qg3 {[%clk 0:00:03.1]} 34. Nxg3 {[%clk 0:00:30.1]} 34... Kxe7
{[%clk 0:00:02]} 35. Nf5+ {[%clk 0:00:30.3]} 1-0

[Event "Late-Titled-Tuesday-Blitz-August-29-2023"]
[Site "Chess.com"]
[Date "2023.08.29"]
[Round "5"]
[White "viktorgen2021"]
[Black "gshwbedhkhd"]
[Result "0-1"]
[WhiteElo "2434"]
[BlackElo "2586"]
[TimeControl "180+1"]
[EndTime "14:54:39 PDT"]
[Termination "gshwbedhkhd won by resignation"]

1. d4 {[%clk 0:02:52.9]} 1... f5 {[%clk 0:02:42.3]} 2. g3 {[%clk 0:02:50.3]}
2... Nf6 {[%clk 0:02:37.7]} 3. Bg2 {[%clk 0:02:50.5]} 3... g6 {[%clk 0:02:35.1]}
4. Nh3 {[%clk 0:02:49.5]} 4... Bg7 {[%clk 0:02:32.3]} 5. Nf4 {[%clk 0:02:47.8]}
5... e6 {[%clk 0:02:28.6]} 6. h4 {[%clk 0:02:47.8]} 6... Qe7 {[%clk 0:02:26.1]}
7. h5 {[%clk 0:02:42.1]} 7... Qf7 {[%clk 0:02:19.9]} 8. Nd2 {[%clk 0:02:37.7]}
8... Nc6 {[%clk 0:02:08.2]} 9. Nf3 {[%clk 0:02:37.4]} 9... Ne4 {[%clk
0:01:57.2]} 10. c3 {[%clk 0:02:20.7]} 10... g5 {[%clk 0:01:51.4]} 11. h6 {[%clk
0:02:20.5]} 11... Bf8 {[%clk 0:01:37.4]} 12. Nd3 {[%clk 0:02:19.9]} 12... Qf6
{[%clk 0:01:27.2]} 13. Be3 {[%clk 0:01:47.6]} 13... Be7 {[%clk 0:01:21.7]} 14.
Nfe5 {[%clk 0:01:35.5]} 14... d6 {[%clk 0:01:14]} 15. Nxc6 {[%clk 0:01:29.6]}
15... bxc6 {[%clk 0:01:14.9]} 16. Qa4 {[%clk 0:01:14.6]} 16... Bd7 {[%clk
0:01:14.2]} 17. O-O-O {[%clk 0:01:14.6]} 17... O-O {[%clk 0:01:08.6]} 18. Bf3
{[%clk 0:01:06.1]} 18... Rfb8 {[%clk 0:00:53.6]} 19. Qc2 {[%clk 0:01:04.4]}
19... Rb5 {[%clk 0:00:50.6]} 20. g4 {[%clk 0:00:58.1]} 20... Rab8 {[%clk
0:00:42.4]} 21. gxf5 {[%clk 0:00:56.3]} 21... exf5 {[%clk 0:00:41.2]} 22. Rdg1
{[%clk 0:00:37.8]} 22... Kh8 {[%clk 0:00:33.8]} 23. c4 {[%clk 0:00:35.6]} 23...
Ra5 {[%clk 0:00:33.2]} 24. b3 {[%clk 0:00:34.5]} 24... g4 {[%clk 0:00:31]} 25.
Bxe4 {[%clk 0:00:27.6]} 25... fxe4 {[%clk 0:00:31.9]} 26. Nf4 {[%clk 0:00:27.1]}
26... Bf5 {[%clk 0:00:26.4]} 27. Nh5 {[%clk 0:00:26]} 27... Qf7 {[%clk
0:00:23.6]} 28. Ng7 {[%clk 0:00:26.1]} 28... d5 {[%clk 0:00:18.4]} 29. Rh5
{[%clk 0:00:16.9]} 29... Bg6 {[%clk 0:00:18.2]} 30. Rh2 {[%clk 0:00:14.5]} 30...
dxc4 {[%clk 0:00:18.4]} 31. Rxg4 {[%clk 0:00:08.9]} 31... cxb3 {[%clk
0:00:16.8]} 32. axb3 {[%clk 0:00:09.2]} 32... Ra1+ {[%clk 0:00:16.2]} 33. Kd2
{[%clk 0:00:09.4]} 33... Bb4+ {[%clk 0:00:16.6]} 34. Qc3 {[%clk 0:00:07.3]}
34... Ra2+ {[%clk 0:00:15.1]} 0-1

[Event "Late-Titled-Tuesday-Blitz-August-29-2023"]
[Site "Chess.com"]
[Date "2023.08.29"]
[Round "5"]
[White "19912131712118"]
[Black "Chessdreamer2020"]
[Result "1-0"]
[WhiteElo "2414"]
[BlackElo "2515"]
[TimeControl "180+1"]
[EndTime "14:54:41 PDT"]
[Termination "19912131712118 won on time"]

1. e4 {[%clk 0:03:00.9]} 1... c5 {[%clk 0:02:59.6]} 2. c3 {[%clk 0:02:50.2]}
2... a6 {[%clk 0:02:58.8]} 3. Nf3 {[%clk 0:02:45.3]} 3... d5 {[%clk 0:02:57.8]}
4. exd5 {[%clk 0:02:41.6]} 4... Nf6 {[%clk 0:02:58.1]} 5. Na3 {[%clk 0:02:41]}
5... Nxd5 {[%clk 0:02:55.4]} 6. d4 {[%clk 0:02:35.8]} 6... cxd4 {[%clk
0:02:55.3]} 7. Nxd4 {[%clk 0:02:33.2]} 7... e5 {[%clk 0:02:53.6]} 8. Nf3 {[%clk
0:02:30.2]} 8... Bxa3 {[%clk 0:02:44.7]} 9. Qa4+ {[%clk 0:02:27.9]} 9... Nc6
{[%clk 0:02:41.1]} 10. Qxa3 {[%clk 0:02:26.6]} 10... Nde7 {[%clk 0:02:35.2]} 11.
Be3 {[%clk 0:02:21.6]} 11... O-O {[%clk 0:02:34.7]} 12. Rd1 {[%clk 0:02:20.1]}
12... Qc7 {[%clk 0:02:28.9]} 13. Bc5 {[%clk 0:02:19.6]} 13... Rd8 {[%clk
0:02:10.6]} 14. Rxd8+ {[%clk 0:02:15.9]} 14... Qxd8 {[%clk 0:02:09.4]} 15. Bxe7
{[%clk 0:02:13.6]} 15... Nxe7 {[%clk 0:02:09.4]} 16. Nxe5 {[%clk 0:02:12.5]}
16... Ng6 {[%clk 0:01:52.9]} 17. Nxg6 {[%clk 0:02:07.6]} 17... hxg6 {[%clk
0:01:53.8]} 18. Be2 {[%clk 0:02:07.5]} 18... Qe8 {[%clk 0:01:53.2]} 19. c4
{[%clk 0:01:51.4]} 19... Bf5 {[%clk 0:01:43.8]} 20. Qe3 {[%clk 0:01:50.7]} 20...
Qa4 {[%clk 0:01:42.3]} 21. Qb3 {[%clk 0:01:42.9]} 21... Qe8 {[%clk 0:01:37.5]}
22. Qe3 {[%clk 0:01:41.3]} 22... Qa4 {[%clk 0:01:23.2]} 23. Qb3 {[%clk
0:01:40.2]} 23... Qa5+ {[%clk 0:01:22.2]} 24. Qc3 {[%clk 0:01:32.5]} 24... Qxa2
{[%clk 0:01:08.4]} 25. O-O {[%clk 0:01:31.6]} 25... Rd8 {[%clk 0:00:51.5]} 26.
h3 {[%clk 0:01:26.4]} 26... Be4 {[%clk 0:00:44.6]} 27. Kh2 {[%clk 0:01:17.5]}
27... Bc6 {[%clk 0:00:43.3]} 28. Rd1 {[%clk 0:01:16.2]} 28... Rxd1 {[%clk
0:00:42.8]} 29. Bxd1 {[%clk 0:01:17.1]} 29... Qb1 {[%clk 0:00:43.3]} 30. Qc2
{[%clk 0:01:14.8]} 30... Qa1 {[%clk 0:00:35.7]} 31. Qd2 {[%clk 0:01:08.6]} 31...
Kh7 {[%clk 0:00:32.1]} 32. h4 {[%clk 0:01:06.5]} 32... Qb1 {[%clk 0:00:28.5]}
33. Qc2 {[%clk 0:01:03.6]} 33... Qxc2 {[%clk 0:00:27.2]} 34. Bxc2 {[%clk
0:01:03.8]} 34... Kg8 {[%clk 0:00:26.1]} 35. g4 {[%clk 0:01:02.5]} 35... Kf8
{[%clk 0:00:26.7]} 36. Kg3 {[%clk 0:01:02]} 36... Ke7 {[%clk 0:00:26.1]} 37. Kf4
{[%clk 0:01:02.6]} 37... Kd6 {[%clk 0:00:25.7]} 38. b4 {[%clk 0:01:01.7]} 38...
Bd7 {[%clk 0:00:24.1]} 39. c5+ {[%clk 0:00:59]} 39... Kc7 {[%clk 0:00:19.7]} 40.
g5 {[%clk 0:00:57.1]} 40... Bc6 {[%clk 0:00:19.3]} 41. Ke5 {[%clk 0:00:56.9]}
41... Bg2 {[%clk 0:00:18.7]} 42. f4 {[%clk 0:00:56.8]} 42... Bc6 {[%clk
0:00:15.5]} 43. Bd3 {[%clk 0:00:56.9]} 43... Bb5 {[%clk 0:00:04.3]} 44. Be4
{[%clk 0:00:54.7]} 44... Bc4 {[%clk 0:00:03.8]} 45. Bf3 {[%clk 0:00:51.4]} 45...
b6 {[%clk 0:00:03.4]} 46. Bd5 {[%clk 0:00:48.1]} 46... Bxd5 {[%clk 0:00:01.6]}
47. Kxd5 {[%clk 0:00:49]} 1-0

[Event "Late-Titled-Tuesday-Blitz-August-29-2023"]
[Site "Chess.com"]
[Date "2023.08.29"]
[Round "5"]
[White "Druid24"]
[Black "platy3"]
[Result "1-0"]
[WhiteElo "2672"]
[BlackElo "2902"]
[TimeControl "180+1"]
[EndTime "14:54:43 PDT"]
[Termination "Druid24 won by resignation"]

1. e4 {[%clk 0:02:48.7]} 1... e5 {[%clk 0:02:59.5]} 2. Nf3 {[%clk 0:02:48.6]}
2... Nc6 {[%clk 0:03:00.3]} 3. Bb5 {[%clk 0:02:49.3]} 3... a6 {[%clk 0:02:59.5]}
4. Ba4 {[%clk 0:02:48.4]} 4... Nge7 {[%clk 0:03:00.3]} 5. c3 {[%clk 0:02:48.6]}
5... Ng6 {[%clk 0:03:00.2]} 6. d4 {[%clk 0:02:48.6]} 6... exd4 {[%clk
0:03:00.2]} 7. cxd4 {[%clk 0:02:49.1]} 7... d5 {[%clk 0:03:00.9]} 8. exd5 {[%clk
0:02:48.5]} 8... Qxd5 {[%clk 0:03:01.8]} 9. Nc3 {[%clk 0:02:49]} 9... Bb4 {[%clk
0:02:59.2]} 10. Qe2+ {[%clk 0:02:46.4]} 10... Qe6 {[%clk 0:02:45.1]} 11. O-O
{[%clk 0:02:42.9]} 11... Bxc3 {[%clk 0:02:40.7]} 12. Qxe6+ {[%clk 0:02:42.2]}
12... Bxe6 {[%clk 0:02:41.6]} 13. bxc3 {[%clk 0:02:42.6]} 13... O-O {[%clk
0:02:34.6]} 14. Re1 {[%clk 0:02:40.1]} 14... Bd5 {[%clk 0:02:32.5]} 15. Ba3
{[%clk 0:02:36.9]} 15... Rfe8 {[%clk 0:02:29.7]} 16. Bb3 {[%clk 0:02:22.5]}
16... Nf4 {[%clk 0:02:25.7]} 17. Ne5 {[%clk 0:02:18.4]} 17... Nxe5 {[%clk
0:02:15.5]} 18. dxe5 {[%clk 0:02:14.9]} 18... Bxg2 {[%clk 0:02:03.4]} 19. Bc1
{[%clk 0:01:58.5]} 19... Nd3 {[%clk 0:02:03.1]} 20. Re3 {[%clk 0:01:59.3]} 20...
Nxc1 {[%clk 0:02:02.8]} 21. Bxf7+ {[%clk 0:01:51.7]} 21... Kxf7 {[%clk
0:01:58.7]} 22. Kxg2 {[%clk 0:01:52.6]} 22... Nxa2 {[%clk 0:01:57]} 23. Rxa2
{[%clk 0:01:53.5]} 23... Rad8 {[%clk 0:01:45.7]} 24. f4 {[%clk 0:01:48.3]} 24...
Rd5 {[%clk 0:01:43.2]} 25. h4 {[%clk 0:01:48.2]} 25... g6 {[%clk 0:01:41.1]} 26.
Kf3 {[%clk 0:01:48.1]} 26... Ke6 {[%clk 0:01:34.8]} 27. h5 {[%clk 0:01:47.1]}
27... Rc5 {[%clk 0:01:19.5]} 28. Rg2 {[%clk 0:01:44.5]} 28... Rg8 {[%clk
0:01:18.8]} 29. Rg5 {[%clk 0:01:36.6]} 29... Rc6 {[%clk 0:00:39.5]} 30. f5+
{[%clk 0:01:35.8]} 30... Kf7 {[%clk 0:00:39.4]} 31. hxg6+ {[%clk 0:01:28.7]}
31... hxg6 {[%clk 0:00:40.3]} 32. e6+ {[%clk 0:01:28.6]} 32... Kf6 {[%clk
0:00:40.4]} 33. Rg4 {[%clk 0:01:16.7]} 33... Kxf5 {[%clk 0:00:38]} 34. Rf4+
{[%clk 0:01:14.3]} 34... Kg5 {[%clk 0:00:38.2]} 35. e7 {[%clk 0:01:15.1]} 35...
Re8 {[%clk 0:00:37.4]} 36. Re5+ {[%clk 0:01:07.5]} 36... Kh6 {[%clk 0:00:37.5]}
37. Rf8 {[%clk 0:01:08.2]} 37... Rxc3+ {[%clk 0:00:36.1]} 38. Ke2 {[%clk
0:01:07.5]} 38... Rxe7 {[%clk 0:00:31.5]} 39. Rxe7 {[%clk 0:01:08]} 39... b5
{[%clk 0:00:19.2]} 40. Rh8+ {[%clk 0:00:56.9]} 40... Kg5 {[%clk 0:00:19.2]} 41.
Ra8 {[%clk 0:00:57.6]} 41... Kf6 {[%clk 0:00:15]} 42. Re3 {[%clk 0:00:53.6]}
42... Rc2+ {[%clk 0:00:11.4]} 43. Kf3 {[%clk 0:00:50.7]} 43... Ra2 {[%clk
0:00:11.5]} 44. Rc3 {[%clk 0:00:50.6]} 44... b4 {[%clk 0:00:10.7]} 45. Rc6+
{[%clk 0:00:49.2]} 45... Kg5 {[%clk 0:00:11.1]} 46. Raxa6 {[%clk 0:00:46]} 46...
Rb2 {[%clk 0:00:11]} 47. Rxc7 {[%clk 0:00:41.8]} 47... b3 {[%clk 0:00:10.5]} 48.
Rb6 {[%clk 0:00:41.7]} 48... Rb1 {[%clk 0:00:10.3]} 49. Rcb7 {[%clk 0:00:41]}
1-0

[Event "Late-Titled-Tuesday-Blitz-August-29-2023"]
[Site "Chess.com"]
[Date "2023.08.29"]
[Round "5"]
[White "promen1999"]
[Black "Rud_Makarian"]
[Result "1-0"]
[WhiteElo "2876"]
[BlackElo "3006"]
[TimeControl "180+1"]
[EndTime "14:54:44 PDT"]
[Termination "promen1999 won by resignation"]

1. c4 {[%clk 0:02:46.3]} 1... c6 {[%clk 0:02:57.5]} 2. Nf3 {[%clk 0:02:45.3]}
2... d5 {[%clk 0:02:58.1]} 3. e3 {[%clk 0:02:45.9]} 3... Nf6 {[%clk 0:02:58.6]}
4. Nc3 {[%clk 0:02:45.6]} 4... a6 {[%clk 0:02:58.4]} 5. b3 {[%clk 0:02:44.5]}
5... Bf5 {[%clk 0:02:41.8]} 6. Bb2 {[%clk 0:02:44.5]} 6... e6 {[%clk 0:02:41.9]}
7. Nh4 {[%clk 0:02:44.1]} 7... Bg4 {[%clk 0:02:35.9]} 8. Qc2 {[%clk 0:02:44.7]}
8... Bh5 {[%clk 0:02:31.4]} 9. h3 {[%clk 0:02:41.3]} 9... Nfd7 {[%clk
0:02:26.2]} 10. g4 {[%clk 0:02:31.6]} 10... Qxh4 {[%clk 0:02:21.8]} 11. gxh5
{[%clk 0:02:32.1]} 11... Nf6 {[%clk 0:02:15.7]} 12. Be2 {[%clk 0:02:30.7]} 12...
Nbd7 {[%clk 0:02:15.3]} 13. O-O-O {[%clk 0:02:29.6]} 13... Qxf2 {[%clk
0:02:10.4]} 14. Rdf1 {[%clk 0:02:26.6]} 14... Qg3 {[%clk 0:02:10.7]} 15. Rhg1
{[%clk 0:02:22.9]} 15... Qd6 {[%clk 0:02:08]} 16. h6 {[%clk 0:02:20.9]} 16...
gxh6 {[%clk 0:02:01.6]} 17. Kb1 {[%clk 0:01:51.8]} 17... Be7 {[%clk 0:01:55.7]}
18. Rg7 {[%clk 0:01:47.2]} 18... Kf8 {[%clk 0:01:54.1]} 19. Rg2 {[%clk
0:01:44.3]} 19... b5 {[%clk 0:01:44.2]} 20. cxd5 {[%clk 0:01:39.3]} 20... cxd5
{[%clk 0:01:42.3]} 21. Nd1 {[%clk 0:01:30.9]} 21... Rg8 {[%clk 0:01:37.7]} 22.
Rxg8+ {[%clk 0:01:21.7]} 22... Kxg8 {[%clk 0:01:36.9]} 23. Nf2 {[%clk
0:01:22.5]} 23... e5 {[%clk 0:01:32.3]} 24. Ng4 {[%clk 0:01:20.9]} 24... Nxg4
{[%clk 0:01:26.4]} 25. Bxg4 {[%clk 0:01:17]} 25... Nf8 {[%clk 0:01:24.9]} 26.
Qf5 {[%clk 0:01:11.1]} 26... Qg6 {[%clk 0:01:24.2]} 27. Bxe5 {[%clk 0:01:11]}
27... Rd8 {[%clk 0:01:10]} 28. Bh5 {[%clk 0:01:04.8]} 28... Qxf5+ {[%clk
0:01:08.2]} 29. Rxf5 {[%clk 0:01:05.7]} 29... Ng6 {[%clk 0:01:07.1]} 30. Bd4
{[%clk 0:01:06.3]} 30... Bf8 {[%clk 0:01:04.5]} 31. Bf6 {[%clk 0:00:55.1]} 31...
Rd6 {[%clk 0:01:02.3]} 32. Bf3 {[%clk 0:00:52.9]} 32... Bg7 {[%clk 0:00:40.2]}
33. Bxg7 {[%clk 0:00:50.5]} 33... Kxg7 {[%clk 0:00:37.9]} 34. Rxd5 {[%clk
0:00:45.9]} 34... Rf6 {[%clk 0:00:28.8]} 35. Bg4 {[%clk 0:00:45.4]} 35... Rc6
{[%clk 0:00:25]} 36. b4 {[%clk 0:00:43.2]} 36... Ne7 {[%clk 0:00:21.7]} 37. Rd7
{[%clk 0:00:41.7]} 37... Ng6 {[%clk 0:00:18.9]} 38. d4 {[%clk 0:00:40.3]} 38...
Rc4 {[%clk 0:00:16.6]} 39. Be6 {[%clk 0:00:32.2]} 39... Rxb4+ {[%clk 0:00:16.8]}
40. Kc2 {[%clk 0:00:32.8]} 40... Kf6 {[%clk 0:00:16.8]} 41. Bb3 {[%clk
0:00:31.9]} 41... a5 {[%clk 0:00:09.7]} 42. Rxf7+ {[%clk 0:00:27.7]} 42... Kg5
{[%clk 0:00:10.1]} 43. a3 {[%clk 0:00:27.5]} 1-0